fUST/lending_fUST_20240112
["ID","MTS","AMOUNT","RATE_DAILY","PERIOD"]
[311304910,1705055441958,-500.0,0.00027663,2]
[311304911,1705055441966,-500.0,0.00027663,2]
[311304912,1705055441975,-500.0,0.00027663,2]
[311304913,1705055441984,-223.18099763,0.00027663,2]
[311304914,1705055441993,-500.0,0.00027663,2]
[311304915,1705055442002,-500.0,0.00027663,2]
[311304916,1705055442011,-437.47651782,0.00027663,2]
[311304917,1705055442020,-500.0,0.00027663,2]
[311304918,1705055442029,-500.0,0.00027663,2]
[311304919,1705055442038,-501.73,0.00027663,2]
[311304921,1705055442047,-502.58332383,0.00027663,2]
[311304922,1705055442055,-1085.31,0.00027663,2]
[311304923,1705055442064,-1807.55,0.00027663,2]
[311304924,1705055442073,-500.0,0.00027663,2]
[311304926,1705055442082,-500.0,0.00027663,2]
[311304928,1705055442090,-500.0,0.00027663,2]
[311304930,1705055442100,-500.0,0.00027663,2]
[311304932,1705055442109,-10100.9,0.00027663,2]
[311304934,1705055442118,-501.81277413,0.00027663,2]
[311304936,1705055442126,-500.0,0.00027663,2]
[311304938,1705055442136,-510.48923295,0.00027663,2]
[311304940,1705055442145,-1829.41,0.00027663,2]
[311304942,1705055442154,-500.0,0.00027663,2]
[311304944,1705055442163,-500.0,0.00027663,2]
[311304946,1705055442172,-500.0,0.00027663,2]
[311304948,1705055442181,-500.0,0.00027663,2]
[311304950,1705055442190,-502.50749345,0.00027663,2]
[311304952,1705055442198,-2954.38,0.00027663,2]
[311304954,1705055442207,-9868.28,0.00027663,2]
[311304955,1705055442219,-502.88294829,0.00027663,2]
[311304957,1705055442228,-500.0,0.00027663,2]
[311304959,1705055442237,-500.0,0.00027663,2]
[311304961,1705055442246,-500.0,0.00027663,2]
[311304963,1705055442255,-1472.88,0.00027663,2]
[311304966,1705055442266,-500.0,0.00027664,2]
[311304968,1705055442277,-500.0,0.00027664,2]
[311304970,1705055442286,-500.0,0.00027664,2]
[311304972,1705055442295,-500.0,0.00027664,2]
[311304974,1705055442304,-501.59202637,0.00027664,2]
[311304976,1705055442313,-500.0,0.00027664,2]
[311304977,1705055442322,-500.0,0.00027664,2]
[311304980,1705055442333,-446.68067741,0.00027664,2]
[311304982,1705055442343,-503.34416239,0.00027664,2]
[311304984,1705055442353,-500.0,0.00027664,2]
[311304985,1705055442362,-504.63290904,0.00027664,2]
[311304987,1705055442372,-242.60610889,0.00027664,2]
[311304989,1705055442381,-505.62134056,0.00027664,2]
[311304992,1705055442391,-603.31,0.00027664,2]
[311304993,1705055442400,-500.0,0.00027664,2]
[311304995,1705055442409,-500.0,0.00027664,2]
[311304998,1705055442419,-363.08490721,0.00027664,2]
[311305000,1705055442428,-221.19922226,0.00027664,2]
[311305002,1705055442437,-503.40046405,0.00027664,2]
[311305004,1705055442446,-500.0,0.00027664,2]
[311305006,1705055442455,-707.82,0.00027664,2]
[311305008,1705055442465,-506.10378055,0.00027664,2]
[311305009,1705055442474,-500.0,0.00027664,2]
[311305012,1705055442484,-502.91432883,0.00027664,2]
[311305014,1705055442494,-503.40959148,0.00027664,2]
[311305015,1705055442503,-500.0,0.00027664,2]
[311305017,1705055442513,-500.0,0.00027664,2]
[311305020,1705055442526,-500.0,0.00027664,2]
[311305021,1705055442535,-580.58,0.00027664,2]
[311305024,1705055442545,-199.84692394,0.00027664,2]
[311305026,1705055442557,-815.06,0.00027664,2]
[311305028,1705055442566,-500.0,0.00027664,2]
[311305030,1705055442575,-503.26176095,0.00027664,2]
[311305032,1705055442584,-500.0,0.00027664,2]
[311305033,1705055442593,-508.23531577,0.00027664,2]
[311305035,1705055442604,-500.0,0.00027664,2]
[311305037,1705055442614,-500.0,0.00027664,2]
[311305039,1705055442623,-500.0,0.00027664,2]
[311305041,1705055442632,-500.0,0.00027664,2]
[311305043,1705055442642,-500.33793307,0.00027664,2]
[311305046,1705055442653,-245.82913321,0.00027664,2]
[311305047,1705055442662,-500.0,0.00027664,2]
[311305049,1705055442671,-501.332857,0.00027664,2]
[311305051,1705055442680,-500.0,0.00027664,2]
[311305053,1705055442689,-510.47449178,0.00027664,2]
[311305055,1705055442698,-500.0,0.00027664,2]
[311305057,1705055442707,-500.0,0.00027664,2]
[311305059,1705055442716,-500.0,0.00027664,2]
[311305061,1705055442726,-500.0,0.00027664,2]
[311305063,1705055442735,-500.0,0.00027664,2]
[311305065,1705055442744,-500.0,0.00027664,2]
[311305069,1705055442763,-500.0,0.00027664,2]
[311305073,1705055442777,-502.61545032,0.00027664,2]
[311305076,1705055442785,-500.0,0.00027664,2]
[311305079,1705055442795,-177.73517949,0.00027664,2]
[311305082,1705055442804,-502.48431119,0.00027664,2]
[311305085,1705055442814,-500.0,0.00027664,2]
[311305087,1705055442823,-1172.61,0.00027664,2]
[311305090,1705055442832,-549.18434283,0.00027664,2]
[311305093,1705055442842,-525.58859104,0.00027664,2]
[311305096,1705055442851,-500.0,0.00027664,2]
[311305098,1705055442861,-500.0,0.00027664,2]
[311305103,1705055442876,-502.90417363,0.00027665,2]
[311305105,1705055442886,-623.26,0.00027665,2]
[311305108,1705055442896,-503.85827066,0.00027665,2]
[311305110,1705055442905,-580.19280659,0.00027665,2]
[311305113,1705055442915,-500.0,0.00027665,2]
[311305114,1705055442924,-500.0,0.00027665,2]
[311305116,1705055442933,-482.44626768,0.00027665,2]
[311305119,1705055442942,-500.0,0.00027665,2]
[311305121,1705055442953,-500.0,0.00027665,2]
[311305123,1705055442963,-504.28672125,0.00027665,2]
[311305125,1705055442972,-500.0,0.00027665,2]
[311305127,1705055442981,-257.80271324,0.00027665,2]
[311305129,1705055442990,-500.0,0.00027665,2]
[311305131,1705055442999,-500.0,0.00027665,2]
[311305133,1705055443009,-500.0,0.00027665,2]
[311305135,1705055443019,-554.42766068,0.00027665,2]
[311305137,1705055443032,-500.0,0.00027665,2]
[311305139,1705055443042,-500.0,0.00027665,2]
[311305141,1705055443051,-206.36593232,0.00027665,2]
[311305143,1705055443060,-503.98052669,0.00027665,2]
[311305145,1705055443069,-610.55046193,0.00027665,2]
[311305147,1705055443079,-499.58251508,0.00027665,2]
[311305149,1705055443088,-500.0,0.00027665,2]
[311305151,1705055443097,-500.0,0.00027665,2]
[311305153,1705055443107,-500.0,0.00027665,2]
[311305155,1705055443117,-414.29802364,0.00027665,2]
[311305157,1705055443126,-500.0,0.00027665,2]
[311305159,1705055443135,-500.0,0.00027665,2]
[311305161,1705055443145,-500.0,0.00027665,2]
[311305163,1705055443154,-500.0,0.00027665,2]
[311305165,1705055443163,-500.0,0.00027665,2]
[311305167,1705055443172,-465.78510027,0.00027665,2]
[311305169,1705055443182,-502.59292805,0.00027665,2]
[311305171,1705055443192,-502.73231423,0.00027665,2]
[311305173,1705055443201,-500.0,0.00027665,2]
[311305175,1705055443210,-500.0,0.00027665,2]
[311305177,1705055443219,-500.0,0.00027665,2]
[311305179,1705055443229,-505.14388722,0.00027665,2]
[311305181,1705055443238,-500.99325054,0.00027665,2]
[311305183,1705055443247,-500.93772388,0.00027665,2]
[311305185,1705055443257,-398.04807974,0.00027665,2]
[311305187,1705055443266,-500.0,0.00027665,2]
[311305189,1705055443275,-500.0,0.00027665,2]
[311305191,1705055443284,-500.0,0.00027665,2]
[311305193,1705055443294,-500.0,0.00027665,2]
[311305195,1705055443303,-500.0,0.00027665,2]
[311305197,1705055443312,-503.53907948,0.00027665,2]
[311305199,1705055443322,-500.0,0.00027665,2]
[311305201,1705055443331,-90389.02676416,0.000278,2]
[311305203,1705055443340,-2000.0,0.000278,2]
[311305205,1705055443352,-2000.0,0.0002781,2]
[311305207,1705055443361,-2000.0,0.0002782,2]
[311305209,1705055443370,-2000.0,0.0002783,2]
[311305211,1705055443378,-500.0,0.00027838,2]
[311305214,1705055443387,-500.0,0.00027839,2]
[311305216,1705055443396,-2000.0,0.0002784,2]
[311305218,1705055443405,-2000.0,0.0002785,2]
[311305220,1705055443415,-264.33380194,0.00027859,2]
[311305222,1705055443423,-2000.0,0.0002786,2]
[311305224,1705055443433,-2000.0,0.0002787,2]
[311305225,1705055443442,-2000.0,0.0002788,2]
[311305227,1705055443451,-692.49971331,0.00027889,2]
[311305229,1705055443460,-2000.0,0.0002789,2]
[311305231,1705055443469,-350.17237703,0.00027898,2]
[311305233,1705055443479,-1023.4591381,0.00027898,2]
[311305235,1705055443488,-510.08762846,0.00027898,2]
[311305237,1705055443500,-947.43868379,0.00027898,2]
[311305239,1705055443509,-155.10993602,0.00027898,2]
[311305242,1705055443519,-178.44106149,0.00027898,2]
[311305243,1705055443529,-297.17777658,0.00027898,2]
[311305246,1705055443538,-828.29552574,0.00027898,2]
[311305247,1705055443547,-312.98141829,0.00027898,2]
[311305249,1705055443556,-500.0,0.00027899,2]
[311305251,1705055443566,-500.0,0.00027899,2]
[311305253,1705055443575,-500.0,0.00027899,2]
[311305255,1705055443584,-500.0,0.00027899,2]
[311305257,1705055443594,-500.0,0.00027899,2]
[311305259,1705055443603,-500.0,0.00027899,2]
[311305261,1705055443612,-500.0,0.00027899,2]
[311305263,1705055443621,-500.0,0.00027899,2]
[311305265,1705055443631,-500.0,0.00027899,2]
[311305267,1705055443640,-500.0,0.00027899,2]
[311305269,1705055443649,-500.0,0.00027899,2]
[311305271,1705055443658,-500.0,0.00027899,2]
[311305273,1705055443667,-500.0,0.00027899,2]
[311305275,1705055443676,-500.0,0.00027899,2]
[311305277,1705055443685,-500.0,0.00027899,2]
[311305279,1705055443694,-500.0,0.00027899,2]
[311305281,1705055443703,-450.91165382,0.00027899,2]
[311305283,1705055443712,-267651.32606107,0.000279,2]
[311305285,1705055443722,-155.37405527,0.000279,2]
[311305287,1705055443731,-310.02908231,0.000279,2]
[311305289,1705055443740,-500.0,0.000279,2]
[311305291,1705055443750,-500.0,0.000279,2]
[311305293,1705055443759,-2000.0,0.000279,2]
[311305295,1705055443769,-1048.857616,0.000279,2]
[311305297,1705055443779,-1048.857616,0.000279,2]
[311305299,1705055443789,-1456.573487,0.000279,2]
[311305313,1705055443909,-1456.573487,0.000279,2]
[311305315,1705055443918,-2000.0,0.000279,2]
[311305317,1705055443928,-2000.0,0.000279,2]
[311305319,1705055443937,-252.385167,0.000279,2]
[311305321,1705055443947,-252.385167,0.000279,2]
[311305323,1705055443956,-2000.0,0.0002791,2]
[311305325,1705055443965,-2000.0,0.0002792,2]
[311305327,1705055443975,-3292.729325,0.0002793,2]
[311305329,1705055443984,-753.41,0.00027935,2]
[311305331,1705055443993,-4911.94,0.00027936,2]
[311305333,1705055444001,-562.77,0.00027936,2]
[311305335,1705055444010,-190.0,0.00027937,2]
[311305337,1705055444019,-434.14437205,0.00027937,2]
[311305338,1705055444028,-537.2506109,0.00027937,2]
[311305340,1705055444037,-500.0,0.00027937,2]
[311305342,1705055444046,-511.4247668,0.00027937,2]
[311305344,1705055444055,-500.0,0.00027937,2]
[311305346,1705055444064,-500.0,0.00027937,2]
[311305348,1705055444073,-501.73,0.00027937,2]
[311305350,1705055444082,-1085.31,0.00027937,2]
[311305352,1705055444091,-1807.55,0.00027937,2]
[311305354,1705055444104,-505.57069525,0.00027937,2]
[311305356,1705055444113,-500.0,0.00027937,2]
[311305358,1705055444122,-10100.9,0.00027937,2]
[311305360,1705055444131,-1829.41,0.00027937,2]
[311305362,1705055444139,-500.0,0.00027937,2]
[311305364,1705055444149,-500.0,0.00027937,2]
[311305365,1705055444158,-2954.38,0.00027937,2]
[311305367,1705055444167,-9868.28,0.00027937,2]
[311305368,1705055444176,-500.0,0.00027937,2]
[311305370,1705055444185,-500.0,0.00027937,2]
[311305372,1705055444194,-1472.88,0.00027937,2]
[311305374,1705055444203,-500.0,0.00027938,2]
[311305376,1705055444213,-500.0,0.00027938,2]
[311305378,1705055444222,-501.71106437,0.00027938,2]
[311305380,1705055444231,-525.35269183,0.00027938,2]
[311305382,1705055444241,-500.0,0.00027938,2]
[311305384,1705055444250,-500.0,0.00027938,2]
[311305386,1705055444260,-603.31,0.00027938,2]
[311305388,1705055444269,-500.0,0.00027938,2]
[311305390,1705055444281,-500.0,0.00027938,2]
[311305392,1705055444290,-500.0,0.00027938,2]
[311305394,1705055444299,-707.82,0.00027938,2]
[311305396,1705055444308,-391.04603421,0.00027938,2]
[311305398,1705055444317,-580.58,0.00027938,2]
[311305400,1705055444326,-815.06,0.00027938,2]
[311305402,1705055444335,-500.0,0.00027938,2]
[311305404,1705055444344,-500.0,0.00027938,2]
[311305405,1705055444353,-623.8853397,0.00027938,2]
[311305406,1705055444362,-500.0,0.00027938,2]
[311305407,1705055444371,-500.0,0.00027938,2]
[311305409,1705055444380,-503.79144164,0.00027938,2]
[311305411,1705055444390,-500.0,0.00027938,2]
[311305413,1705055444399,-500.0,0.00027938,2]
[311305415,1705055444410,-531.27583352,0.00027938,2]
[311305417,1705055444419,-500.0,0.00027938,2]
[311305419,1705055444428,-500.0,0.00027938,2]
[311305421,1705055444437,-319.28218975,0.00027938,2]
[311305423,1705055444446,-500.0,0.00027938,2]
[311305425,1705055444455,-500.0,0.00027938,2]
[311305427,1705055444464,-1172.61,0.00027938,2]
[311305429,1705055444473,-500.0,0.00027938,2]
[311305431,1705055444482,-500.0,0.00027938,2]
[311305433,1705055444491,-1048.857616,0.00027939,2]
[311305435,1705055444501,-1048.857616,0.00027939,2]
[311305437,1705055444511,-1456.573487,0.00027939,2]
[311305439,1705055444520,-1456.573487,0.00027939,2]
[311305441,1705055444530,-2000.0,0.00027939,2]
[311305443,1705055444539,-2000.0,0.00027939,2]
[311305445,1705055444548,-252.385167,0.00027939,2]
[311305446,1705055444558,-252.385167,0.00027939,2]
[311305448,1705055444571,-12526.78297323,0.00027939,2]
[311305450,1705055444580,-623.26,0.00027939,2]
[311305453,1705055444590,-500.0,0.00027939,2]
[311305454,1705055444599,-500.0,0.00027939,2]
[311305457,1705055444610,-500.0,0.00027939,2]
[311305458,1705055444619,-500.0,0.00027939,2]
[311305460,1705055444628,-517.95883023,0.00027939,2]
[311305462,1705055444637,-500.0,0.00027939,2]
[311305464,1705055444647,-500.0,0.00027939,2]
[311305466,1705055444657,-506.61588092,0.00027939,2]
[311305468,1705055444666,-506.17830102,0.00027939,2]
[311305470,1705055444675,-184.13370995,0.00027939,2]
[311305471,1705055444684,-500.0,0.00027939,2]
[311305473,1705055444693,-500.0,0.00027939,2]
[311305475,1705055444702,-500.0,0.00027939,2]
[311305477,1705055444711,-165.5381675,0.00027939,2]
[311305479,1705055444720,-507.72720742,0.00027939,2]
[311305481,1705055444729,-500.0,0.00027939,2]
[311305482,1705055444739,-387.36439512,0.00027939,2]
[311305485,1705055444748,-500.0,0.00027939,2]
[311305487,1705055444759,-500.0,0.00027939,2]
[311305488,1705055444768,-500.0,0.00027939,2]
[311305490,1705055444779,-500.0,0.00027939,2]
[311305492,1705055444789,-645.29078378,0.00027939,2]
[311305494,1705055444798,-500.0,0.00027939,2]
[311305496,1705055444808,-155.47141227,0.0002794,2]
[311305498,1705055444817,-500.0,0.0002794,2]
[311305500,1705055444826,-159.61467089,0.0002794,2]
[311305501,1705055445117,-500.0,0.0002739,2]
[311305502,1705055445127,-500.0,0.00027664,2]
[311305503,1705055445136,-508.33250671,0.00027938,2]
[311305504,1705055445145,-37.07972211,0.0002794,2]
[311305505,1705055445154,-500.0,0.0002794,2]
[311305506,1705055445163,-256.04409347,0.0002794,2]
[311305507,1705055445174,-243.95590653,0.0002794,2]
[311305508,1705055445182,-198.7191111,0.00027945,2]
[311305509,1705055445191,-153.0,0.00027945,2]
[311305510,1705055445200,-153.0,0.00027945,2]
[311305511,1705055445209,-153.0,0.00027945,2]
[311305512,1705055445218,-153.0,0.00027945,2]
[311305513,1705055445227,-153.0,0.00027945,2]
[311305514,1705055445236,-153.0,0.00027945,2]
[311305515,1705055445245,-153.0,0.00027945,2]
[311305516,1705055445254,-153.0,0.00027945,2]
[311305517,1705055445264,-154.6154681,0.00027945,2]
[311305518,1705055445275,-153.5835952,0.00027945,2]
[311305519,1705055445284,-306.0,0.00027945,2]
[311305520,1705055445294,-237.7053383,0.00028,2]
[311305521,1705055445303,-1176.12242529,0.00028,2]
[311305522,1705055445314,-2059.1129734,0.00028,2]
[311305523,1705055445326,-1268.73873438,0.00028,2]
[311305524,1705055445339,-2765.63844934,0.00028,2]
[311305525,1705055445350,-404.01179138,0.00028,2]
[311305543,1705055446398,-500.0,0.00027387,2]
[311305544,1705055446407,-500.0,0.00027387,2]
[311305545,1705055446418,-500.0,0.00027389,2]
[311305546,1705055446428,-157.41135511,0.00027389,2]
[311305547,1705055446437,-3185.16,0.0002779,3]
[311305548,1705055446447,-1624.58864825,0.00028,2]
[311305549,1705055446456,-783.71511399,0.00028,2]
[311305550,1705055446466,-753.41,0.00028209,2]
[311305551,1705055446475,-3551.57686829,0.0002821,2]
[311305552,1705055446486,-472.55486556,0.0002821,2]
[311305788,1705056639111,-155.0558201,0.00024724,2]
[311305789,1705056639120,-1798.80746522,0.00024724,2]
[311305790,1705056639131,-1011.01301772,0.00024724,2]
[311305791,1705056639140,-500.0,0.00024725,2]
[311305792,1705056639149,-429.7479518,0.00027372,2]
[311305793,1705056639158,-463.28607501,0.00027373,2]
[311305794,1705056639169,-783.64834685,0.00027373,2]
[311305795,1705056639177,-1758.38998096,0.00027374,2]
[311305796,1705056639186,-1507.51,0.00027378,3]
[311305798,1705056639196,-2874.73,0.00027378,3]
[311305799,1705056639205,-2395.61,0.00027378,3]
[311305801,1705056639215,-2934.99839198,0.00027385,2]
[311305804,1705056639225,-297.17777658,0.00027385,2]
[311305806,1705056639234,-312.98141829,0.00027385,2]
[311305808,1705056639244,-178.44106149,0.00027385,2]
[311305810,1705056639252,-947.43868379,0.00027385,2]
[311305812,1705056639262,-510.08762846,0.00027385,2]
[311305814,1705056639271,-828.29552574,0.00027385,2]
[311305816,1705056639283,-692.49971331,0.00027385,2]
[311305817,1705056639291,-212.88567836,0.00027386,2]
[311305819,1705056639301,-701.95047309,0.00027386,2]
[311305821,1705056639310,-500.0,0.00027387,2]
[311305823,1705056639319,-501.62499809,0.00027387,2]
[311305825,1705056639328,-500.0,0.00027387,2]
[311305827,1705056639337,-246.6914067,0.00027387,2]
[311305829,1705056639346,-500.0,0.00027387,2]
[311305831,1705056639355,-514.7787775,0.00027387,2]
[311305833,1705056639364,-500.0,0.00027387,2]
[311305835,1705056639373,-500.0,0.00027387,2]
[311305837,1705056639382,-504.88887298,0.00027387,2]
[311305839,1705056639392,-506.52956934,0.00027387,2]
[311305841,1705056639401,-528.53480019,0.00027387,2]
[311305843,1705056639410,-500.0,0.00027387,2]
[311305845,1705056639419,-506.34902153,0.00027387,2]
[311305847,1705056639428,-500.0,0.00027387,2]
[311305849,1705056639436,-500.0,0.00027387,2]
[311305851,1705056639445,-500.0,0.00027387,2]
[311305853,1705056639455,-500.0,0.00027387,2]
[311305855,1705056639463,-500.0,0.00027387,2]
[311305857,1705056639472,-500.0,0.00027387,2]
[311305859,1705056639481,-500.0,0.00027387,2]
[311305861,1705056639490,-500.0,0.00027387,2]
[311305863,1705056639499,-500.0,0.00027387,2]
[311305865,1705056639508,-623.8853397,0.00027387,2]
[311305867,1705056639517,-675.21,0.00027387,2]
[311305869,1705056639527,-319.28218975,0.00027387,2]
[311305871,1705056639536,-531.27583352,0.00027387,2]
[311305873,1705056639545,-500.0,0.00027387,2]
[311305875,1705056639554,-500.0,0.00027387,2]
[311305877,1705056639563,-500.0,0.00027387,2]
[311305879,1705056639572,-500.0,0.00027387,2]
[311305881,1705056639580,-500.0,0.00027387,2]
[311305883,1705056639589,-593.06,0.00027387,2]
[311305884,1705056639598,-504.17871892,0.00027387,2]
[311305887,1705056639608,-500.0,0.00027387,2]
[311305889,1705056639617,-500.0,0.00027387,2]
[311305890,1705056639626,-207.46446491,0.00027387,2]
[311305892,1705056639636,-500.0,0.00027387,2]
[311305895,1705056639646,-210.97829169,0.00027387,2]
[311305896,1705056639655,-500.0,0.00027387,2]
[311305898,1705056639664,-501.42185792,0.00027387,2]
[311305900,1705056639674,-500.0,0.00027387,2]
[311305902,1705056639683,-500.0,0.00027387,2]
[311305904,1705056639692,-500.0,0.00027387,2]
[311305906,1705056639701,-613.49410004,0.00027387,2]
[311305908,1705056639710,-500.0,0.00027387,2]
[311305910,1705056639720,-500.0,0.00027387,2]
[311305912,1705056639729,-243.88592719,0.00027387,2]
[311305913,1705056639739,-221.18200146,0.00027387,2]
[311305915,1705056639749,-500.0,0.00027387,2]
[311305918,1705056639759,-500.0,0.00027387,2]
[311305920,1705056639768,-500.0,0.00027387,2]
[311305922,1705056639779,-500.0,0.00027387,2]
[311305923,1705056639788,-500.0,0.00027387,2]
[311305925,1705056639797,-500.0,0.00027387,2]
[311305927,1705056639806,-500.0,0.00027387,2]
[311305930,1705056639815,-503.79144164,0.00027387,2]
[311305932,1705056639824,-502.5188286,0.00027387,2]
[311305934,1705056639833,-500.0,0.00027387,2]
[311305936,1705056639843,-500.0,0.00027387,2]
[311305938,1705056639852,-500.0,0.00027387,2]
[311305939,1705056639862,-501.28148476,0.00027387,2]
[311305942,1705056639871,-500.0,0.00027387,2]
[311305944,1705056639881,-500.0,0.00027387,2]
[311305946,1705056639891,-501.0410312,0.00027387,2]
[311305947,1705056639902,-500.0,0.00027387,2]
[311305949,1705056639911,-500.66753377,0.00027387,2]
[311305951,1705056639921,-500.0,0.00027387,2]
[311305953,1705056639930,-500.0,0.00027387,2]
[311305955,1705056639939,-1074.89,0.00027387,2]
[311305957,1705056639949,-500.0,0.00027387,2]
[311305959,1705056639958,-500.0,0.00027387,2]
[311305961,1705056639968,-500.0,0.00027387,2]
[311305963,1705056639977,-521.66517936,0.00027387,2]
[311305965,1705056639987,-502.07026035,0.00027387,2]
[311305966,1705056639996,-500.0,0.00027387,2]
[311305967,1705056640005,-604.1386713,0.00027387,2]
[311305968,1705056640014,-554.42766068,0.00027387,2]
[311305969,1705056640024,-500.0,0.00027387,2]
[311305970,1705056640038,-500.0,0.00027387,2]
[311305971,1705056640047,-659.23,0.00027387,2]
[311305972,1705056640056,-500.0,0.00027388,2]
[311305973,1705056640066,-500.0,0.00027388,2]
[311305974,1705056640075,-537.2506109,0.00027388,2]
[311305975,1705056640084,-500.0,0.00027388,2]
[311305976,1705056640093,-500.0,0.00027388,2]
[311305978,1705056640102,-500.0,0.00027388,2]
[311305980,1705056640111,-511.4247668,0.00027388,2]
[311305981,1705056640121,-504.1577727,0.00027388,2]
[311305983,1705056640131,-500.0,0.00027388,2]
[311305984,1705056640143,-782.39974458,0.00027388,5]
[311305985,1705056640153,-500.0,0.00027388,2]
[311305986,1705056640162,-500.0,0.00027388,2]
[311305987,1705056640171,-500.0,0.00027388,2]
[311305988,1705056640181,-500.0,0.00027388,2]
[311305989,1705056640191,-500.0,0.00027388,2]
[311305990,1705056640200,-500.0,0.00027388,2]
[311305991,1705056640210,-593.57177758,0.00027388,2]
[311305992,1705056640221,-500.0,0.00027388,2]
[311305993,1705056640231,-500.0,0.00027388,2]
[311305994,1705056640240,-500.0,0.00027388,2]
[311305995,1705056640249,-506.45992818,0.00027388,2]
[311305996,1705056640259,-1656.92,0.00027388,2]
[311305997,1705056640268,-532.2,0.00027388,2]
[311305998,1705056640277,-500.0,0.00027388,2]
[311305999,1705056640289,-501.71106437,0.00027388,2]
[311306000,1705056640298,-9446.6,0.00027388,2]
[311306001,1705056640307,-500.0,0.00027388,2]
[311306002,1705056640316,-500.0,0.00027388,2]
[311306003,1705056640325,-204.80596901,0.00027388,2]
[311306004,1705056640334,-500.0,0.00027388,2]
[311306005,1705056640343,-500.0,0.00027388,2]
[311306006,1705056640352,-283.42872033,0.00027388,2]
[311306007,1705056640362,-500.0,0.00027388,2]
[311306008,1705056640371,-500.0,0.00027388,2]
[311306009,1705056640380,-4547.71,0.00027388,2]
[311306010,1705056640389,-500.0,0.00027388,2]
[311306011,1705056640399,-505.57069525,0.00027388,2]
[311306012,1705056640408,-1676.96,0.00027388,2]
[311306013,1705056640420,-500.70031834,0.00027388,2]
[311306014,1705056640429,-500.0,0.00027388,2]
[311306015,1705056640437,-500.0,0.00027388,2]
[311306016,1705056640450,-500.0,0.00027388,2]
[311306017,1705056640459,-501.53749364,0.00027388,2]
[311306018,1705056640468,-500.0,0.00027388,2]
[311306019,1705056640478,-500.0,0.00027388,2]
[311306020,1705056640488,-500.0,0.00027388,2]
[311306021,1705056640497,-500.0,0.00027388,2]
[311306022,1705056640507,-500.0,0.00027388,2]
[311306023,1705056640517,-500.0,0.00027388,2]
[311306024,1705056640526,-500.0,0.00027388,2]
[311306025,1705056640536,-500.0,0.00027388,2]
[311306027,1705056640547,-2708.19,0.00027388,2]
[311306028,1705056640556,-500.0,0.00027388,2]
[311306029,1705056640565,-9045.92,0.00027388,2]
[311306030,1705056640574,-500.0,0.00027388,2]
[311306031,1705056640583,-994.87,0.00027388,2]
[311306032,1705056640592,-515.88,0.00027388,2]
[311306033,1705056640601,-1350.14,0.00027388,2]
[311306034,1705056640611,-573.86,0.00027388,2]
[311306035,1705056640620,-795.74233933,0.00027389,2]
[311306036,1705056640629,-383.11577033,0.00027389,2]
[311306038,1705056640638,-500.0,0.00027389,2]
[311306039,1705056640647,-523.12073781,0.00027389,2]
[311306041,1705056640656,-500.0,0.00027389,2]
[311306042,1705056640665,-387.36439512,0.00027389,2]
[311306044,1705056640675,-500.0,0.00027389,2]
[311306045,1705056640684,-500.0,0.00027389,2]
[311306046,1705056640695,-747.13,0.00027389,2]
[311306048,1705056640704,-500.0,0.00027389,2]
[311306049,1705056640714,-500.0,0.00027389,2]
[311306050,1705056640723,-509.54407372,0.00027389,2]